[Event "Live Chess"]
[Site "Chess.com"]
[Date "2024.06.01"]
[Round "-"]
[White "KeithArkell"]
[Black "bonantagulo"]
[Result "1-0"]
[WhiteElo "2416"]
[BlackElo "2108"]
[TimeControl "300"]
[EndTime "14:45:24 PDT"]
[Termination "KeithArkell won by checkmate"]

1. d4 {[%clk 0:04:57.5]} 1... Nf6 {[%clk 0:04:57.1]} 2. Nf3 {[%clk 0:04:56.8]}
2... e6 {[%clk 0:04:54.8]} 3. c4 {[%clk 0:04:56.1]} 3... b6 {[%clk 0:04:53.6]}
4. g3 {[%clk 0:04:55.1]} 4... Ba6 {[%clk 0:04:52.3]} 5. b3 {[%clk 0:04:54.1]}
5... Bb4+ {[%clk 0:04:51.2]} 6. Bd2 {[%clk 0:04:53]} 6... Be7 {[%clk 0:04:50.2]}
7. Bg2 {[%clk 0:04:52.5]} 7... c6 {[%clk 0:04:48.6]} 8. O-O {[%clk 0:04:51.7]}
8... d5 {[%clk 0:04:48.1]} 9. Ne5 {[%clk 0:04:50.8]} 9... Nfd7 {[%clk
0:04:42.6]} 10. Nd3 {[%clk 0:04:48.8]} 10... dxc4 {[%clk 0:04:33.4]} 11. Nb4
{[%clk 0:04:48.1]} 11... Bb7 {[%clk 0:04:18.4]} 12. bxc4 {[%clk 0:04:46.4]}
12... Qc7 {[%clk 0:04:15.4]} 13. a4 {[%clk 0:04:45.5]} 13... c5 {[%clk
0:04:13.7]} 14. dxc5 {[%clk 0:04:41.3]} 14... Bxc5 {[%clk 0:03:52.7]} 15. Nd3
{[%clk 0:04:39.3]} 15... Bxg2 {[%clk 0:03:49.7]} 16. Kxg2 {[%clk 0:04:39.2]}
16... Bd4 {[%clk 0:03:46]} 17. Nc3 {[%clk 0:04:37.5]} 17... O-O {[%clk
0:03:38.5]} 18. Nb5 {[%clk 0:04:35]} 18... Qb7+ {[%clk 0:03:34.3]} 19. Kg1
{[%clk 0:04:33.9]} 19... Bxa1 {[%clk 0:03:32.6]} 20. Qxa1 {[%clk 0:04:33.5]}
20... Nc6 {[%clk 0:03:28.1]} 21. Bc3 {[%clk 0:04:30.4]} 21... f6 {[%clk
0:03:25.4]} 22. Nf4 {[%clk 0:04:29.7]} 22... e5 {[%clk 0:03:19.6]} 23. Nd5
{[%clk 0:04:26.2]} 23... Nc5 {[%clk 0:03:13.4]} 24. f3 {[%clk 0:04:13.6]} 24...
e4 {[%clk 0:02:55.7]} 25. Nd6 {[%clk 0:04:07.4]} 25... Qd7 {[%clk 0:02:51.6]}
26. Nxe4 {[%clk 0:04:06.3]} 26... Nxe4 {[%clk 0:02:46.3]} 27. fxe4 {[%clk
0:04:06.2]} 27... Qd6 {[%clk 0:02:41.4]} 28. Qb1 {[%clk 0:03:55.4]} 28... Qc5+
{[%clk 0:02:38.1]} 29. Kg2 {[%clk 0:03:52.3]} 29... Qxc4 {[%clk 0:02:36]} 30.
Qd3 {[%clk 0:03:47.9]} 30... Qxa4 {[%clk 0:02:25.5]} 31. Ra1 {[%clk 0:03:31.1]}
31... Qb3 {[%clk 0:02:21.4]} 32. Rb1 {[%clk 0:03:22.3]} 32... Qa3 {[%clk
0:02:18.6]} 33. Ra1 {[%clk 0:03:21.2]} 33... Qc5 {[%clk 0:02:16.1]} 34. Rc1
{[%clk 0:03:18.6]} 34... Ne5 {[%clk 0:02:09.8]} 35. Qa6 {[%clk 0:03:01.7]} 35...
Qc4 {[%clk 0:01:53]} 36. Qxc4 {[%clk 0:02:58.6]} 36... Nxc4 {[%clk 0:01:52.9]}
37. Bxf6 {[%clk 0:02:57.8]} 37... Nd2 {[%clk 0:01:23.9]} 38. Be7 {[%clk
0:02:46.8]} 38... Rf7 {[%clk 0:01:17.1]} 39. e5 {[%clk 0:02:46.3]} 39... Re8
{[%clk 0:01:12]} 40. e6 {[%clk 0:02:45.7]} 40... Rf5 {[%clk 0:01:04.3]} 41. Ne3
{[%clk 0:02:24.2]} 41... Re5 {[%clk 0:01:02.1]} 42. Ng4 {[%clk 0:02:12.9]} 42...
Rxe2+ {[%clk 0:00:59.7]} 43. Kh3 {[%clk 0:02:10.8]} 43... Rxe6 {[%clk
0:00:49.9]} 44. Bb4 {[%clk 0:02:09.4]} 44... Nf3 {[%clk 0:00:41.6]} 45. Rc7
{[%clk 0:02:06.1]} 45... Ne5 {[%clk 0:00:35.6]} 46. Ne3 {[%clk 0:02:03.3]} 46...
Nd3 {[%clk 0:00:32.4]} 47. Nd5 {[%clk 0:02:00.2]} 47... Nxb4 {[%clk 0:00:30.2]}
48. Nxb4 {[%clk 0:01:59]} 48... a5 {[%clk 0:00:29]} 49. Nd5 {[%clk 0:01:57.3]}
49... a4 {[%clk 0:00:22.6]} 50. Ra7 {[%clk 0:01:56.2]} 50... b5 {[%clk
0:00:21.8]} 51. Ra5 {[%clk 0:01:44.3]} 51... Rb8 {[%clk 0:00:19.5]} 52. Nc7
{[%clk 0:01:42.1]} 52... Reb6 {[%clk 0:00:17.7]} 53. Nd5 {[%clk 0:01:36.6]}
53... R6b7 {[%clk 0:00:16.7]} 54. Nb4 {[%clk 0:01:34.6]} 54... h6 {[%clk
0:00:15.2]} 55. Ra6 {[%clk 0:01:34.2]} 55... Rb6 {[%clk 0:00:14.2]} 56. Ra7
{[%clk 0:01:33]} 56... R8b7 {[%clk 0:00:13.4]} 57. Ra8+ {[%clk 0:01:32.4]} 57...
Kf7 {[%clk 0:00:12.9]} 58. Kg4 {[%clk 0:01:26.2]} 58... Ke6 {[%clk 0:00:12.3]}
59. Kf4 {[%clk 0:01:24.8]} 59... Kd6 {[%clk 0:00:11.9]} 60. Ke4 {[%clk
0:01:23.3]} 60... Kc5 {[%clk 0:00:11.8]} 61. Nd3+ {[%clk 0:01:22.7]} 61... Kc4
{[%clk 0:00:11.2]} 62. Rc8+ {[%clk 0:01:22.1]} 62... Kb3 {[%clk 0:00:10.2]} 63.
Nc5+ {[%clk 0:01:21.7]} 63... Kb2 {[%clk 0:00:09.4]} 64. Nd3+ {[%clk 0:01:21.1]}
64... Ka2 {[%clk 0:00:08.4]} 65. Rc2+ {[%clk 0:01:19]} 65... Kb1 {[%clk
0:00:07.8]} 66. Rb2+ {[%clk 0:01:18]} 66... Ka1 {[%clk 0:00:07]} 67. Rb4 {[%clk
0:01:17.4]} 67... a3 {[%clk 0:00:06.4]} 68. Ne1 {[%clk 0:01:16.2]} 68... a2
{[%clk 0:00:06.2]} 69. Nc2# {[%clk 0:01:15.5]} 1-0

[Event "Live Chess"]
[Site "Chess.com"]
[Date "2024.06.01"]
[Round "-"]
[White "JanMur7"]
[Black "NeilDruggan73"]
[Result "1-0"]
[WhiteElo "2295"]
[BlackElo "1754"]
[TimeControl "300"]
[EndTime "14:45:24 PDT"]
[Termination "JanMur7 won by resignation"]

1. c4 {[%clk 0:04:58.6]} 1... d6 {[%clk 0:04:58.4]} 2. Nc3 {[%clk 0:04:57.9]}
2... Nf6 {[%clk 0:04:57.4]} 3. d4 {[%clk 0:04:56.7]} 3... g6 {[%clk 0:04:57.1]}
4. e4 {[%clk 0:04:55.1]} 4... Bg7 {[%clk 0:04:56.8]} 5. Be2 {[%clk 0:04:54.7]}
5... O-O {[%clk 0:04:55.9]} 6. Bg5 {[%clk 0:04:54.3]} 6... Nc6 {[%clk
0:04:50.9]} 7. g4 {[%clk 0:04:50.9]} 7... e5 {[%clk 0:04:47.8]} 8. d5 {[%clk
0:04:49.7]} 8... Ne7 {[%clk 0:04:45]} 9. h4 {[%clk 0:04:47.3]} 9... h6 {[%clk
0:04:43.4]} 10. Be3 {[%clk 0:04:45.2]} 10... h5 {[%clk 0:04:41.4]} 11. gxh5
{[%clk 0:04:42.3]} 11... Nxh5 {[%clk 0:04:38.6]} 12. Bxh5 {[%clk 0:04:41.2]}
12... gxh5 {[%clk 0:04:37.6]} 13. Qxh5 {[%clk 0:04:40.4]} 13... Ng6 {[%clk
0:04:32.4]} 14. Nge2 {[%clk 0:04:36.7]} 14... Qd7 {[%clk 0:04:27.2]} 15. Rg1
{[%clk 0:04:32.4]} 15... Qh3 {[%clk 0:04:19.5]} 16. Bh6 {[%clk 0:04:20.6]} 16...
Kh7 {[%clk 0:03:39.3]} 17. Bxg7+ {[%clk 0:04:05.8]} 17... Kxg7 {[%clk
0:03:38.1]} 18. Qg5 {[%clk 0:04:05.7]} 18... Rh8 {[%clk 0:03:35.1]} 19. O-O-O
{[%clk 0:03:57.9]} 19... Rxh4 {[%clk 0:03:29]} 20. Rg3 {[%clk 0:03:49.2]} 20...
Qh2 {[%clk 0:03:23.1]} 21. f4 {[%clk 0:03:37.9]} 21... Rh5 {[%clk 0:03:14.3]}
22. Qd8 {[%clk 0:03:26.3]} 22... b6 {[%clk 0:02:57.2]} 23. f5 {[%clk 0:03:19]}
23... Bxf5 {[%clk 0:02:53.5]} 24. Qxa8 {[%clk 0:03:12.4]} 24... Bd7 {[%clk
0:02:32]} 25. Qd8 {[%clk 0:03:09.5]} 25... Ba4 {[%clk 0:02:13.8]} 26. Rdg1
{[%clk 0:02:56.3]} 26... Qf2 {[%clk 0:02:02.5]} 27. Qxc7 {[%clk 0:02:49.7]}
27... Qe3+ {[%clk 0:01:59.7]} 28. Rxe3 {[%clk 0:02:47.1]} 1-0

[Event "Live Chess"]
[Site "Chess.com"]
[Date "2024.06.01"]
[Round "-"]
[White "hapehansen"]
[Black "chessfiction"]
[Result "1-0"]
[WhiteElo "2270"]
[BlackElo "2371"]
[TimeControl "300"]
[EndTime "14:45:29 PDT"]
[Termination "hapehansen won by resignation"]

1. Nf3 {[%clk 0:04:56.2]} 1... Nf6 {[%clk 0:04:57.8]} 2. c4 {[%clk 0:04:54.5]}
2... g6 {[%clk 0:04:57.7]} 3. g3 {[%clk 0:04:48.9]} 3... Bg7 {[%clk 0:04:57.6]}
4. Bg2 {[%clk 0:04:48]} 4... O-O {[%clk 0:04:57.5]} 5. O-O {[%clk 0:04:47.2]}
5... d6 {[%clk 0:04:52.1]} 6. d4 {[%clk 0:04:43.6]} 6... Nbd7 {[%clk 0:04:51.2]}
7. Nc3 {[%clk 0:04:41.6]} 7... c6 {[%clk 0:04:50.6]} 8. h3 {[%clk 0:04:37.1]}
8... e5 {[%clk 0:04:50]} 9. e4 {[%clk 0:04:33.4]} 9... Qc7 {[%clk 0:04:48.2]}
10. Be3 {[%clk 0:04:28.6]} 10... Re8 {[%clk 0:04:46.7]} 11. d5 {[%clk
0:04:19.9]} 11... a6 {[%clk 0:04:42.6]} 12. Qe2 {[%clk 0:04:09.6]} 12... Nc5
{[%clk 0:04:27.1]} 13. Nd2 {[%clk 0:04:06.1]} 13... cxd5 {[%clk 0:04:23.6]} 14.
cxd5 {[%clk 0:04:03.3]} 14... b5 {[%clk 0:04:22.3]} 15. Rfc1 {[%clk 0:03:57.1]}
15... Qe7 {[%clk 0:04:18]} 16. b4 {[%clk 0:03:51.6]} 16... Ncd7 {[%clk
0:04:16.9]} 17. a4 {[%clk 0:03:49.3]} 17... bxa4 {[%clk 0:04:13.5]} 18. Rxa4
{[%clk 0:03:43.4]} 18... Nh5 {[%clk 0:04:07]} 19. b5 {[%clk 0:03:31.9]} 19... a5
{[%clk 0:04:04.3]} 20. Nc4 {[%clk 0:03:20.7]} 20... f5 {[%clk 0:04:02.2]} 21.
exf5 {[%clk 0:03:12]} 21... e4 {[%clk 0:03:54.8]} 22. Nxe4 {[%clk 0:03:02.6]}
22... gxf5 {[%clk 0:03:33.4]} 23. Nexd6 {[%clk 0:02:55.9]} 23... f4 {[%clk
0:03:31.7]} 24. Qxh5 {[%clk 0:02:52.4]} 24... Rf8 {[%clk 0:03:25.8]} 25. Bxf4
{[%clk 0:02:46.1]} 1-0

[Event "Live Chess"]
[Site "Chess.com"]
[Date "2024.06.01"]
[Round "-"]
[White "FlyingChessKestrel13"]
[Black "jellhhggffhjjjjjj"]
[Result "1-0"]
[WhiteElo "2058"]
[BlackElo "404"]
[TimeControl "300"]
[EndTime "14:45:31 PDT"]
[Termination "FlyingChessKestrel13 won by checkmate"]

1. e4 {[%clk 0:04:58.4]} 1... g6 {[%clk 0:04:55]} 2. d4 {[%clk 0:04:56.4]} 2...
Bg7 {[%clk 0:04:54.4]} 3. Nc3 {[%clk 0:04:55.3]} 3... d5 {[%clk 0:04:54]} 4.
exd5 {[%clk 0:04:52.5]} 4... Bf5 {[%clk 0:04:46.1]} 5. Nf3 {[%clk 0:04:50.8]}
5... c6 {[%clk 0:04:43.7]} 6. dxc6 {[%clk 0:04:49.4]} 6... Nxc6 {[%clk
0:04:43.2]} 7. d5 {[%clk 0:04:48.3]} 7... Nb4 {[%clk 0:04:36.8]} 8. Bb5+ {[%clk
0:04:45.3]} 8... Kf8 {[%clk 0:04:27.7]} 9. Bd3 {[%clk 0:04:37.6]} 9... Nxd3+
{[%clk 0:04:22]} 10. cxd3 {[%clk 0:04:35.8]} 10... Nf6 {[%clk 0:04:15.5]} 11.
O-O {[%clk 0:04:30.6]} 11... Nxd5 {[%clk 0:04:13.7]} 12. d4 {[%clk 0:04:22.6]}
12... Nxc3 {[%clk 0:04:10.9]} 13. bxc3 {[%clk 0:04:21.5]} 13... Qd5 {[%clk
0:04:08.3]} 14. Be3 {[%clk 0:04:18.7]} 14... Bg4 {[%clk 0:04:04.9]} 15. h3
{[%clk 0:04:17.3]} 15... Bxf3 {[%clk 0:04:03.5]} 16. Qxf3 {[%clk 0:04:17.2]}
16... Qxf3 {[%clk 0:04:02.5]} 17. gxf3 {[%clk 0:04:17.1]} 17... h5 {[%clk
0:04:00]} 18. Rab1 {[%clk 0:04:15.7]} 18... b6 {[%clk 0:03:58]} 19. c4 {[%clk
0:04:15.1]} 19... f6 {[%clk 0:03:54.5]} 20. c5 {[%clk 0:04:14.3]} 20... bxc5
{[%clk 0:03:52.4]} 21. dxc5 {[%clk 0:04:13.5]} 21... Kf7 {[%clk 0:03:50.9]} 22.
Rfc1 {[%clk 0:04:11.8]} 22... Rhc8 {[%clk 0:03:40.8]} 23. c6 {[%clk 0:04:10.8]}
23... Rc7 {[%clk 0:03:39.5]} 24. Rb7 {[%clk 0:04:08.6]} 24... Rxb7 {[%clk
0:03:35.1]} 25. cxb7 {[%clk 0:04:07.5]} 25... Rb8 {[%clk 0:03:34.6]} 26. Rb1
{[%clk 0:04:05.7]} 26... g5 {[%clk 0:03:18.1]} 27. Bxa7 {[%clk 0:04:04.4]} 27...
Rxb7 {[%clk 0:03:15.5]} 28. Rxb7 {[%clk 0:04:02.7]} 28... Kg6 {[%clk 0:03:11.1]}
29. Rxe7 {[%clk 0:04:01.2]} 29... h4 {[%clk 0:03:07.7]} 30. Rxg7+ {[%clk
0:03:59.2]} 30... Kxg7 {[%clk 0:03:04.1]} 31. Bd4 {[%clk 0:03:59.1]} 31... Kg6
{[%clk 0:02:59.7]} 32. a4 {[%clk 0:03:58.4]} 32... Kf5 {[%clk 0:02:57.6]} 33. a5
{[%clk 0:03:57.7]} 33... Kf4 {[%clk 0:02:55.6]} 34. a6 {[%clk 0:03:57.6]} 34...
Kxf3 {[%clk 0:02:54.8]} 35. a7 {[%clk 0:03:56.3]} 35... g4 {[%clk 0:02:53.6]}
36. a8=Q+ {[%clk 0:03:54.2]} 36... Kf4 {[%clk 0:02:50.2]} 37. Be3+ {[%clk
0:03:53.5]} 37... Kf5 {[%clk 0:02:47.8]} 38. hxg4+ {[%clk 0:03:53.3]} 38... Kxg4
{[%clk 0:02:45.4]} 39. Qg2+ {[%clk 0:03:53.2]} 39... Kh5 {[%clk 0:02:42.3]} 40.
Qf3+ {[%clk 0:03:52.3]} 40... Kg6 {[%clk 0:02:39.9]} 41. Qg4+ {[%clk 0:03:52]}
41... Kf7 {[%clk 0:02:37.4]} 42. Qxh4 {[%clk 0:03:51.6]} 42... Ke6 {[%clk
0:02:36.2]} 43. Qe4+ {[%clk 0:03:50.5]} 43... Kf7 {[%clk 0:02:34.4]} 44. Qf5
{[%clk 0:03:49.8]} 44... Ke7 {[%clk 0:02:32.9]} 45. Bd4 {[%clk 0:03:48]} 45...
Kd6 {[%clk 0:02:30.9]} 46. Qxf6+ {[%clk 0:03:47.2]} 46... Kc7 {[%clk 0:02:30.1]}
47. Qe7+ {[%clk 0:03:45.8]} 47... Kb8 {[%clk 0:02:28.6]} 48. Qd8+ {[%clk
0:03:44.6]} 48... Kb7 {[%clk 0:02:25.6]} 49. Qb6+ {[%clk 0:03:43.5]} 49... Kc8
{[%clk 0:02:21.1]} 50. Qa7 {[%clk 0:03:38.4]} 50... Kd8 {[%clk 0:02:15.6]} 51.
Bc5 {[%clk 0:03:35.3]} 51... Ke8 {[%clk 0:02:13.6]} 52. Qe7# {[%clk 0:03:33.1]}
1-0

[Event "Live Chess"]
[Site "Chess.com"]
[Date "2024.06.01"]
[Round "-"]
[White "AlexanderMatlak"]
[Black "IanCalvert2"]
[Result "1-0"]
[WhiteElo "2433"]
[BlackElo "1642"]
[TimeControl "300"]
[EndTime "14:45:42 PDT"]
[Termination "AlexanderMatlak won by resignation"]

1. e4 {[%clk 0:04:56.8]} 1... d5 {[%clk 0:04:56.9]} 2. exd5 {[%clk 0:04:55.9]}
2... Qxd5 {[%clk 0:04:55.4]} 3. Nc3 {[%clk 0:04:55.3]} 3... Qd6 {[%clk
0:04:53.4]} 4. Bc4 {[%clk 0:04:53.3]} 4... Nf6 {[%clk 0:04:50.2]} 5. d4 {[%clk
0:04:52]} 5... a6 {[%clk 0:04:42]} 6. Nge2 {[%clk 0:04:47.8]} 6... b5 {[%clk
0:04:37.2]} 7. Bb3 {[%clk 0:04:42.4]} 7... Bb7 {[%clk 0:04:31.3]} 8. O-O {[%clk
0:04:39.1]} 8... c5 {[%clk 0:04:15.1]} 9. dxc5 {[%clk 0:04:32.4]} 9... Qxd1
{[%clk 0:04:05.6]} 10. Rxd1 {[%clk 0:04:32.3]} 10... e6 {[%clk 0:04:03.8]} 11.
Be3 {[%clk 0:04:10.7]} 11... Nbd7 {[%clk 0:03:58.9]} 12. a4 {[%clk 0:04:06.3]}
12... b4 {[%clk 0:03:52.2]} 13. Na2 {[%clk 0:04:01.3]} 13... a5 {[%clk
0:03:49.2]} 14. Bc4 {[%clk 0:03:59.6]} 14... Bxc5 {[%clk 0:03:43]} 15. Bxc5
{[%clk 0:03:57.5]} 15... Nxc5 {[%clk 0:03:41.4]} 16. Bb5+ {[%clk 0:03:56.9]}
16... Ke7 {[%clk 0:03:40.1]} 17. c3 {[%clk 0:03:33.9]} 17... bxc3 {[%clk
0:03:32.8]} 18. Naxc3 {[%clk 0:03:31.9]} 18... Rhd8 {[%clk 0:03:29.7]} 19. Nd4
{[%clk 0:03:22]} 19... Rac8 {[%clk 0:03:12.7]} 20. f3 {[%clk 0:03:18.5]} 20...
Rxd4 {[%clk 0:02:47.7]} 21. Rxd4 {[%clk 0:03:15.6]} 21... Nb3 {[%clk 0:02:46.4]}
22. Rad1 {[%clk 0:03:14.4]} 22... Nxd4 {[%clk 0:02:44]} 23. Rxd4 {[%clk
0:03:14.3]} 23... Rd8 {[%clk 0:02:35.6]} 24. Rc4 {[%clk 0:03:04.7]} 24... Rc8
{[%clk 0:02:32.2]} 25. Rxc8 {[%clk 0:03:01.2]} 25... Bxc8 {[%clk 0:02:30.4]} 26.
Kf2 {[%clk 0:03:00.9]} 26... Bb7 {[%clk 0:02:27.7]} 27. Ke3 {[%clk 0:02:59.9]}
27... Kd6 {[%clk 0:02:25.1]} 28. Kd4 {[%clk 0:02:57.9]} 28... e5+ {[%clk
0:02:17.6]} 29. Kc4 {[%clk 0:02:56.2]} 29... e4 {[%clk 0:02:16.2]} 30. fxe4
{[%clk 0:02:53.9]} 30... Nxe4 {[%clk 0:02:12.8]} 31. Nxe4+ {[%clk 0:02:52.7]}
31... Bxe4 {[%clk 0:02:08.7]} 32. g3 {[%clk 0:02:52]} 32... f5 {[%clk
0:02:02.6]} 33. b4 {[%clk 0:02:50.5]} 33... axb4 {[%clk 0:01:56.6]} 34. Kxb4
{[%clk 0:02:50.4]} 34... g5 {[%clk 0:01:54.2]} 35. Kc3 {[%clk 0:02:48.2]} 35...
f4 {[%clk 0:01:51.2]} 36. Kd4 {[%clk 0:02:47]} 36... Bb7 {[%clk 0:01:37.7]} 37.
gxf4 {[%clk 0:02:38.8]} 37... gxf4 {[%clk 0:01:35.4]} 38. a5 {[%clk 0:02:38.3]}
38... h5 {[%clk 0:01:27]} 39. h4 {[%clk 0:02:36.1]} 39... Ke6 {[%clk 0:01:19.8]}
40. a6 {[%clk 0:02:33.5]} 40... Ba8 {[%clk 0:01:05.8]} 41. a7 {[%clk 0:02:32.1]}
41... Kf5 {[%clk 0:01:01.2]} 42. Bd3+ {[%clk 0:02:30.8]} 42... Kg4 {[%clk
0:00:59.1]} 43. Be4 {[%clk 0:02:29.9]} 43... f3 {[%clk 0:00:57.7]} 44. Bxa8
{[%clk 0:02:28]} 44... f2 {[%clk 0:00:51.1]} 45. Bg2 {[%clk 0:02:26.5]} 1-0

[Event "Live Chess"]
[Site "Chess.com"]
[Date "2024.06.01"]
[Round "-"]
[White "CarmelJane"]
[Black "nigelst"]
[Result "1-0"]
[WhiteElo "2069"]
[BlackElo "1679"]
[TimeControl "300"]
[EndTime "14:45:59 PDT"]
[Termination "CarmelJane won by resignation"]

1. e4 {[%clk 0:04:58.2]} 1... c6 {[%clk 0:04:58.8]} 2. Nc3 {[%clk 0:04:54.8]}
2... d5 {[%clk 0:04:55]} 3. Nf3 {[%clk 0:04:53.9]} 3... Bg4 {[%clk 0:04:44.5]}
4. Be2 {[%clk 0:04:52.1]} 4... Nf6 {[%clk 0:04:36.4]} 5. e5 {[%clk 0:04:47.7]}
5... Nfd7 {[%clk 0:04:34.7]} 6. d4 {[%clk 0:04:46.4]} 6... e6 {[%clk 0:04:31.8]}
7. Be3 {[%clk 0:04:43]} 7... c5 {[%clk 0:04:28.9]} 8. h3 {[%clk 0:04:39.6]} 8...
Bxf3 {[%clk 0:04:26]} 9. Bxf3 {[%clk 0:04:38]} 9... cxd4 {[%clk 0:04:24.6]} 10.
Bxd4 {[%clk 0:04:37.9]} 10... Nc6 {[%clk 0:04:20.7]} 11. O-O {[%clk 0:04:28.2]}
11... Ndxe5 {[%clk 0:04:15.9]} 12. Bxe5 {[%clk 0:04:19.5]} 12... Nxe5 {[%clk
0:04:11.4]} 13. Bxd5 {[%clk 0:03:48.4]} 13... exd5 {[%clk 0:04:04]} 14. Re1
{[%clk 0:03:47.7]} 14... Bd6 {[%clk 0:04:00.9]} 15. f4 {[%clk 0:03:46.6]} 15...
O-O {[%clk 0:03:46.4]} 16. fxe5 {[%clk 0:03:39.9]} 16... Bc5+ {[%clk 0:03:41.3]}
17. Kh1 {[%clk 0:03:39.4]} 17... d4 {[%clk 0:03:35.1]} 18. Ne4 {[%clk
0:03:37.7]} 18... Be7 {[%clk 0:03:30.7]} 19. Qg4 {[%clk 0:03:28.6]} 19... Rc8
{[%clk 0:03:17.4]} 20. c3 {[%clk 0:03:17.5]} 20... dxc3 {[%clk 0:03:09.6]} 21.
Nxc3 {[%clk 0:03:17.3]} 21... Qb6 {[%clk 0:02:48.7]} 22. Nd5 {[%clk 0:03:12.1]}
22... Qe6 {[%clk 0:02:31.6]} 23. Qxe6 {[%clk 0:03:07.2]} 1-0

[Event "Live Chess"]
[Site "Chess.com"]
[Date "2024.06.01"]
[Round "-"]
[White "NebodarMatevich"]
[Black "Zhevzh1k7"]
[Result "1-0"]
[WhiteElo "1559"]
[BlackElo "1103"]
[TimeControl "300"]
[EndTime "14:46:03 PDT"]
[Termination "NebodarMatevich won by resignation"]

1. e4 {[%clk 0:04:52.5]} 1... c6 {[%clk 0:04:59.9]} 2. d4 {[%clk 0:04:51.3]}
2... d5 {[%clk 0:04:59.5]} 3. e5 {[%clk 0:04:50.5]} 3... c5 {[%clk 0:04:58]} 4.
dxc5 {[%clk 0:04:49.5]} 4... e6 {[%clk 0:04:51.4]} 5. Be3 {[%clk 0:04:45.7]}
5... Nc6 {[%clk 0:04:47.3]} 6. Bb5 {[%clk 0:04:42.4]} 6... Qa5+ {[%clk
0:04:45.3]} 7. Nc3 {[%clk 0:04:41]} 7... a6 {[%clk 0:04:43.8]} 8. Bxc6+ {[%clk
0:04:39.6]} 8... bxc6 {[%clk 0:04:43.7]} 9. a3 {[%clk 0:04:36.7]} 9... Ne7
{[%clk 0:04:38.8]} 10. b4 {[%clk 0:04:35.2]} 10... Qc7 {[%clk 0:04:34.8]} 11.
Bd4 {[%clk 0:04:32.9]} 11... a5 {[%clk 0:04:33.5]} 12. Nge2 {[%clk 0:04:28.2]}
12... axb4 {[%clk 0:04:31.7]} 13. axb4 {[%clk 0:04:27.4]} 13... Rxa1 {[%clk
0:04:29.7]} 14. Qxa1 {[%clk 0:04:26.2]} 14... Ng6 {[%clk 0:04:28.7]} 15. f4
{[%clk 0:04:02]} 15... Nh4 {[%clk 0:04:18.3]} 16. O-O {[%clk 0:03:58]} 16... Nf5
{[%clk 0:04:16.6]} 17. Bf2 {[%clk 0:03:50.7]} 17... Be7 {[%clk 0:04:12.3]} 18.
Nd4 {[%clk 0:03:45.5]} 18... Nxd4 {[%clk 0:04:10.9]} 19. Bxd4 {[%clk 0:03:44.1]}
19... O-O {[%clk 0:04:06.1]} 20. b5 {[%clk 0:03:30.3]} 20... cxb5 {[%clk
0:03:59.7]} 21. Nxb5 {[%clk 0:03:29.3]} 21... Qb7 {[%clk 0:03:53.8]} 22. Nd6
{[%clk 0:03:28.1]} 22... Bxd6 {[%clk 0:03:51.8]} 23. cxd6 {[%clk 0:03:25]} 23...
Bd7 {[%clk 0:03:47.8]} 24. c3 {[%clk 0:03:23.8]} 24... Ra8 {[%clk 0:03:43.8]}
25. Qb1 {[%clk 0:03:22.6]} 25... Qxb1 {[%clk 0:03:39.1]} 26. Rxb1 {[%clk
0:03:21]} 26... h6 {[%clk 0:03:33.9]} 27. Rb7 {[%clk 0:03:18.2]} 27... Bc8
{[%clk 0:03:30.2]} 28. Rc7 {[%clk 0:03:15]} 28... Ba6 {[%clk 0:03:26.8]} 29. h3
{[%clk 0:03:11.1]} 29... Bc4 {[%clk 0:03:24.2]} 30. d7 {[%clk 0:03:08.4]} 30...
Ra1+ {[%clk 0:03:22.2]} 31. Kh2 {[%clk 0:03:07.5]} 31... Ra8 {[%clk 0:03:19.8]}
32. Rc8+ {[%clk 0:03:06.3]} 32... Rxc8 {[%clk 0:03:18.3]} 1-0

[Event "Live Chess"]
[Site "Chess.com"]
[Date "2024.06.01"]
[Round "-"]
[White "KnightStripes"]
[Black "McFim"]
[Result "0-1"]
[WhiteElo "903"]
[BlackElo "1623"]
[TimeControl "300"]
[EndTime "14:46:20 PDT"]
[Termination "McFim won by checkmate"]

1. d3 {[%clk 0:04:55.7]} 1... d5 {[%clk 0:04:57]} 2. d4 {[%clk 0:04:49.8]} 2...
Nf6 {[%clk 0:04:53.9]} 3. Nc3 {[%clk 0:04:48.8]} 3... Bf5 {[%clk 0:04:51.5]} 4.
f3 {[%clk 0:04:41.9]} 4... e6 {[%clk 0:04:46.3]} 5. g4 {[%clk 0:04:40.9]} 5...
Bg6 {[%clk 0:04:44.9]} 6. h4 {[%clk 0:04:40.1]} 6... h5 {[%clk 0:04:43.4]} 7. g5
{[%clk 0:04:38.8]} 7... Nfd7 {[%clk 0:04:41.9]} 8. Bf4 {[%clk 0:04:30.2]} 8...
a6 {[%clk 0:04:32.7]} 9. e3 {[%clk 0:04:27.9]} 9... c5 {[%clk 0:04:30.8]} 10.
dxc5 {[%clk 0:04:21]} 10... Bxc5 {[%clk 0:04:27]} 11. Bd3 {[%clk 0:04:19.6]}
11... Bxd3 {[%clk 0:04:20.7]} 12. Qxd3 {[%clk 0:04:18.5]} 12... g6 {[%clk
0:04:15.1]} 13. O-O-O {[%clk 0:04:02.7]} 13... Nc6 {[%clk 0:04:08]} 14. e4
{[%clk 0:04:01.9]} 14... d4 {[%clk 0:04:00.7]} 15. Nce2 {[%clk 0:04:00.2]} 15...
Nb4 {[%clk 0:03:49.3]} 16. Qc4 {[%clk 0:03:51.2]} 16... b5 {[%clk 0:03:45.5]}
17. Qb3 {[%clk 0:03:41.4]} 17... e5 {[%clk 0:03:41.8]} 18. Bg3 {[%clk
0:03:37.7]} 18... a5 {[%clk 0:03:39.8]} 19. f4 {[%clk 0:03:35.4]} 19... a4
{[%clk 0:03:37.7]} 20. Qf3 {[%clk 0:03:31.7]} 20... Nxa2+ {[%clk 0:03:17.7]} 21.
Kb1 {[%clk 0:03:29]} 21... a3 {[%clk 0:03:15.7]} 22. b3 {[%clk 0:03:27.1]} 22...
Nb4 {[%clk 0:03:09.5]} 23. fxe5 {[%clk 0:03:14]} 23... a2+ {[%clk 0:03:07.6]}
24. Ka1 {[%clk 0:03:12.4]} 24... Nxc2+ {[%clk 0:03:02.3]} 25. Kb2 {[%clk
0:03:10.9]} 25... Ne3 {[%clk 0:02:54.6]} 26. Ra1 {[%clk 0:02:59.6]} 26... Qa5
{[%clk 0:02:44.1]} 27. Nxd4 {[%clk 0:02:10.9]} 27... Bxd4+ {[%clk 0:02:39.5]}
28. Kc1 {[%clk 0:02:05.2]} 28... Rc8# {[%clk 0:02:22.4]} 0-1